bitfinex/quotes_SOLUSD_20220128
["timestamp","ask_amount","ask_price","bid_price","bid_amount"]
[1643356045216,33.79745353,90.408,90.337,0.04375011]
[1643356045423,0.25,90.408,90.337,0.04375011]
[1643356046419,29.8622,90.41,90.337,0.04375011]
[1643356046619,2.95669142,90.407,90.337,0.04375011]
[1643356047621,19.10047613,90.406,90.337,0.04375011]
[1643356048220,16.6153,90.4,90.337,0.04375011]
[1643356048620,2.95669142,90.399,90.337,0.04375011]
[1643356050422,19.10047613,90.398,90.337,0.04375011]
[1643356050822,111.85669142,90.397,90.337,0.04375011]
[1643356051022,16.6173,90.39,90.337,0.04375011]
[1643356051425,22.05716755,90.396,90.337,0.04375011]
[1643356051622,2.95669142,90.414,90.337,0.04375011]
[1643356051822,19.10047613,90.415,90.337,0.04375011]
[1643356052824,3.20669142,90.414,90.337,0.04375011]
[1643356053126,19.10047613,90.413,90.337,0.04375011]
[1643356054528,0.25,90.412,90.337,0.04375011]
[1643356055729,19.10047613,90.413,90.337,0.04375011]
[1643356057429,0.25,90.412,90.337,0.04375011]
[1643356057831,19.10047613,90.411,90.337,0.04375011]
[1643356061332,0.25,90.41,90.337,0.04375011]
[1643356061732,19.10047613,90.409,90.337,0.04375011]
[1643356064059,19.10047613,90.409,90.337,6.04375011]
[1643356064257,19.10047613,90.409,90.338,0.25]
[1643356065057,19.10047613,90.409,90.338,6.25]
[1643356065256,19.10047613,90.409,90.338,0.25]
[1643356065456,19.10047613,90.409,90.348,6.0]
[1643356065657,0.25,90.408,90.349,46.17867317]
[1643356065858,0.25,90.408,90.35,0.25]
[1643356067158,19.10047613,90.407,90.35,0.25]
[1643356067558,19.10047613,90.407,90.349,46.17867317]
[1643356068161,2.95669142,90.406,90.337,0.04375011]
[1643356068559,20.60728589,90.405,90.337,0.04375011]
[1643356068759,1.50680976,90.402,90.337,0.04375011]
[1643356069159,20.60728589,90.401,90.337,0.04375011]
[1643356069361,16.6153,90.4,90.337,0.04375011]
[1643356069561,50.69394797,90.4,90.337,0.04375011]
[1643356069762,31.12195655,90.399,90.337,0.04375011]
[1643356070059,34.07864797,90.399,90.337,0.04375011]
[1643356072060,19.10047613,90.398,90.337,0.04375011]
[1643356072462,2.95669142,90.397,90.337,0.04375011]
[1643356072862,19.35047613,90.396,90.337,0.04375011]
[1643356073261,19.10047613,90.395,90.337,0.04375011]
[1643356076268,0.25,90.394,90.337,0.04375011]
[1643356076468,19.10047613,90.395,90.337,0.04375011]
[1643356077668,16.6153,90.4,90.337,0.04375011]
[1643356077868,1.50680976,90.414,90.337,0.04375011]
[1643356078068,0.25,90.399,90.337,0.04375011]
[1643356078268,19.10047613,90.413,90.337,0.04375011]
[1643356079873,0.25,90.412,90.337,0.04375011]
[1643356080271,19.10047613,90.411,90.337,0.04375011]
[1643356082075,19.10047613,90.411,90.342,6.0]
[1643356082275,19.10047613,90.411,90.343,48.52057252]
[1643356084278,0.25,90.41,90.343,48.52057252]
[1643356085277,19.10047613,90.411,90.343,48.52057252]
[1643356085479,19.10047613,90.41,90.344,0.25]
[1643356085677,19.10047613,90.41,90.344,23.3157]
[1643356089882,19.10047613,90.41,90.354,6.0]
[1643356090380,19.10047613,90.41,90.355,0.25]
[1643356091381,19.10047613,90.41,90.345,0.25]
[1643356092582,19.10047613,90.41,90.354,6.0]
[1643356092784,19.10047613,90.41,90.355,0.25]
[1643356092987,19.10047613,90.41,90.345,0.25]
[1643356093385,19.10047613,90.41,90.354,6.0]
[1643356093884,19.10047613,90.41,90.355,0.25]
[1643356094089,19.10047613,90.41,90.344,23.0657]
[1643356094287,31.23047613,90.41,90.344,23.0657]
[1643356094488,2.95669142,90.409,90.337,0.04375011]
[1643356094688,14.88370518,90.409,90.337,0.04375011]
[1643356094888,15.95,90.4,90.337,0.04375011]
[1643356095285,33.98418131,90.399,90.337,0.04375011]
[1643356095485,1.50680976,90.397,90.337,0.04375011]
[1643356095689,33.98418131,90.398,90.337,0.04375011]
[1643356095888,22.05716755,90.396,90.337,0.04375011]
[1643356096109,33.98418131,90.396,90.337,0.04375011]
[1643356096308,17.45680976,90.4,90.337,0.04375011]
[1643356096309,142.88418131,90.395,90.337,0.04375011]
[1643356096610,31.02748989,90.394,90.337,0.04375011]
[1643356096809,33.98418131,90.394,90.337,0.04375011]
[1643356097007,33.98418131,90.393,90.337,0.04375011]
[1643356097208,15.95,90.39,90.337,0.04375011]
[1643356097609,31.02748989,90.389,90.337,0.04375011]
[1643356097809,49.84195193,90.389,90.337,0.04375011]
[1643356098008,2.95669142,90.388,90.337,0.04375011]
[1643356098208,21.52115346,90.388,90.337,0.04375011]
[1643356098408,18.56446204,90.387,90.337,0.04375011]
[1643356101412,0.25,90.386,90.337,0.04375011]
[1643356101611,19.35047613,90.386,90.337,0.04375011]
[1643356101813,18.56446204,90.385,90.337,0.04375011]
[1643356102211,37.66493817,90.385,90.337,0.04375011]
[1643356102610,18.56446204,90.384,90.337,0.04375011]
[1643356104516,19.10047613,90.385,90.337,0.04375011]
[1643356104916,0.25,90.386,90.337,0.04375011]
[1643356105118,11.92701376,90.389,90.337,0.04375011]
[1643356106719,29.25290434,90.389,90.337,0.04375011]
[1643356107518,48.35338047,90.389,90.337,0.04375011]
[1643356108718,0.25,90.388,90.337,0.04375011]
[1643356111423,19.10047613,90.387,90.337,0.04375011]
[1643356112125,31.02748989,90.387,90.337,0.04375011]
[1643356112324,0.25,90.386,90.337,0.04375011]
[1643356112522,35.78131671,90.386,90.337,0.04375011]
[1643356112723,19.10047613,90.385,90.337,0.04375011]
[1643356112922,35.53131671,90.385,90.337,0.04375011]
[1643356113324,19.10047613,90.384,90.337,0.04375011]
[1643356115328,0.25,90.386,90.337,0.04375011]
[1643356115530,11.92701376,90.387,90.337,0.04375011]
[1643356115829,16.43084058,90.404,90.337,0.04375011]
[1643356116032,11.92701376,90.407,90.337,0.04375011]
[1643356117233,1.50680976,90.419,90.337,0.04375011]
[1643356117430,2.95669142,90.421,90.337,0.04375011]
[1643356117431,1.50680976,90.42,90.337,0.04375011]
[1643356117632,23.56397731,90.421,90.337,0.04375011]
[1643356117833,19.10047613,90.419,90.337,0.04375011]
[1643356118533,1.50680976,90.436,90.34,15.95]
[1643356118734,1.50680976,90.457,90.343,1.50621078]
[1643356118932,1.50680976,90.462,90.351,108.9]
[1643356119132,1.50680976,90.465,90.361,6.0]
[1643356119333,1.50680976,90.465,90.362,36.58543746]
[1643356119533,1.50680976,90.469,90.372,6.0]
[1643356119836,1.50680976,90.471,90.374,108.9]
[1643356120035,1.50680976,90.476,90.384,6.0]
[1643356120235,1.50680976,90.477,90.385,59.11151832]
[1643356120434,0.25,90.475,90.385,59.36151832]
[1643356120736,17.72103168,90.476,90.395,6.0]
[1643356120935,0.25,90.475,90.396,23.6426]
[1643356121135,1.50680976,90.479,90.396,29.8926]
[1643356121435,1.50680976,90.48,90.397,108.9]
[1643356121635,1.50680976,90.48,90.408,49.41000567]
[1643356121933,1.50680976,90.48,90.409,46.2372]
[1643356122134,1.50680976,90.485,90.419,6.0]
[1643356122360,1.50680976,90.486,90.42,0.25]
[1643356122738,1.50680976,90.493,90.42,0.25]
[1643356122939,17.72103168,90.497,90.421,108.9]
[1643356123137,17.72103168,90.497,90.42,24.0446]
[1643356123138,17.72103168,90.497,90.422,158.03624673]
[1643356123439,1.50680976,90.51,90.43,6.0]
[1643356123636,1.50680976,90.511,90.431,24.5417]
[1643356123837,17.72103168,90.517,90.432,109.15]
[1643356124037,1.50680976,90.522,90.432,109.15]
[1643356124236,1.50680976,90.526,90.443,44.89365152]
[1643356124438,1.50680976,90.533,90.445,108.9]
[1643356124638,1.50680976,90.543,90.456,108.9]
[1643356124842,1.50680976,90.546,90.459,38.74958035]
[1643356125038,1.50680976,90.548,90.459,38.74958035]
[1643356125238,1.50680976,90.548,90.46,109.15]
[1643356125439,1.50680976,90.556,90.46,109.15]
[1643356125640,17.72103168,90.558,90.46,125.1]
[1643356125838,15.63539527,90.559,90.47,6.0]
[1643356126039,1.50680976,90.576,90.471,24.0158]
[1643356126240,1.50680976,90.58,90.482,34.82114013]
[1643356126442,1.50680976,90.588,90.483,108.9]
[1643356126641,1.50680976,90.594,90.492,6.0]
[1643356126843,17.72103168,90.595,90.493,6.25]
[1643356127041,17.72103168,90.595,90.5,6.0]
[1643356127345,14.50309527,90.594,90.501,45.01199102]
[1643356127743,14.50309527,90.594,90.51,15.95]
[1643356128042,17.72103168,90.595,90.52,6.0]
[1643356128245,17.72103168,90.595,90.521,36.27964834]
[1643356128444,33.73093671,90.614,90.521,36.27964834]
[1643356128747,14.50309527,90.613,90.521,36.27964834]
[1643356129343,17.97103168,90.612,90.521,36.27964834]
[1643356129744,14.50309527,90.611,90.521,36.27964834]
[1643356130755,17.72103168,90.61,90.521,36.27964834]
[1643356131156,14.24753972,90.609,90.521,36.27964834]
[1643356131554,13.99753972,90.608,90.521,36.27964834]
[1643356131753,13.99753972,90.608,90.531,6.0]
[1643356131957,0.25,90.609,90.531,6.0]
[1643356132156,0.25,90.609,90.532,0.25]
[1643356132560,0.25,90.609,90.532,6.25]
[1643356133158,0.25,90.609,90.532,6.0]
[1643356133356,17.72103168,90.609,90.532,6.0]
[1643356134359,17.72103168,90.609,90.522,23.629]
[1643356134760,17.72103168,90.609,90.523,0.25]
[1643356135361,17.72103168,90.609,90.521,36.02964834]
[1643356135561,15.39856447,90.608,90.521,36.02964834]
[1643356135760,15.95,90.6,90.521,36.02964834]
[1643356136361,108.9,90.598,90.521,36.02964834]
[1643356136564,16.5798,90.59,90.521,36.02964834]
[1643356136763,0.25,90.589,90.521,36.02964834]
[1643356137061,47.42460006,90.589,90.521,36.02964834]
[1643356137262,47.17460006,90.588,90.463,98.0335]
[1643356137483,111.9,90.581,90.44,15.95]
[1643356137685,0.31268916,90.559,90.431,47.516]
[1643356137883,16.5816,90.58,90.421,131.7704]
[1643356137884,15.95,90.55,90.421,131.7704]
[1643356138085,15.95,90.55,90.422,46.91891251]
[1643356138288,15.95,90.55,90.422,49.20472857]
[1643356138484,30.16290473,90.549,90.432,6.0]
[1643356138686,30.16290473,90.549,90.433,48.1321]
[1643356138883,30.16290473,90.548,90.433,54.1321]
[1643356139284,30.16290473,90.547,90.433,54.1321]
[1643356139685,30.50168473,90.546,90.434,108.9]
[1643356139886,30.50168473,90.546,90.434,109.15]
[1643356140192,30.50168473,90.545,90.434,109.15]
[1643356140387,30.50168473,90.545,90.435,2.28581606]
[1643356140588,30.50168473,90.544,90.445,54.68713702]
[1643356140789,30.50168473,90.544,90.446,109.15]
[1643356140987,30.50168473,90.543,90.446,109.15]
[1643356141389,18.30981168,90.542,90.446,109.15]
[1643356141886,18.05981168,90.541,90.446,109.15]
[1643356143092,18.05981168,90.541,90.456,6.0]
[1643356143290,0.25,90.542,90.457,109.15]
[1643356143492,0.25,90.542,90.457,117.43581606]
[1643356143890,0.25,90.542,90.458,2.28581606]
[1643356144090,0.25,90.542,90.459,45.10766333]
[1643356144290,0.25,90.542,90.46,108.9]
[1643356144490,18.05981168,90.562,90.47,6.0]
[1643356144691,12.44187305,90.562,90.47,21.95]
[1643356144891,18.05981168,90.584,90.471,0.25]
[1643356145090,18.05981168,90.584,90.471,8.53581606]
[1643356145294,18.05981168,90.584,90.48,6.0]
[1643356145493,18.05981168,90.584,90.49,15.95]
[1643356145696,18.05981168,90.584,90.491,155.8407]
[1643356145892,18.05981168,90.584,90.501,108.9]
[1643356146095,18.05981168,90.584,90.501,114.9]
[1643356146293,18.05981168,90.584,90.502,0.25]
[1643356146493,1.50680976,90.601,90.502,0.25]
[1643356146693,1.50680976,90.591,90.502,0.25]
[1643356147096,1.50680976,90.595,90.502,0.25]
[1643356147293,1.50680976,90.596,90.502,0.25]
[1643356147493,1.50680976,90.594,90.502,0.25]
[1643356147695,1.50680976,90.593,90.502,0.25]
[1643356147900,18.05981168,90.594,90.502,0.25]
[1643356148305,0.25,90.593,90.502,0.25]
[1643356148702,1.50680976,90.59,90.502,0.25]
[1643356149102,1.50680976,90.589,90.502,0.25]
[1643356149505,1.50680976,90.59,90.502,0.25]
[1643356149705,1.50680976,90.589,90.502,0.25]
[1643356149903,1.50680976,90.585,90.502,0.25]
[1643356150204,1.50680976,90.586,90.502,0.25]
[1643356150405,1.50680976,90.586,90.503,2.27925047]
[1643356150606,1.50680976,90.59,90.513,6.0]
[1643356150802,1.50680976,90.591,90.514,0.25]
[1643356151004,1.50680976,90.592,90.52,6.0]
[1643356151406,1.50680976,90.591,90.524,6.0]
[1643356151903,1.50680976,90.584,90.525,0.25]
[1643356152103,1.50680976,90.58,90.515,23.046]
[1643356152304,1.50680976,90.573,90.514,47.21593073]
[1643356152504,1.50680976,90.579,90.514,47.21593073]
[1643356152704,1.50680976,90.578,90.514,47.21593073]
[1643356152910,1.50680976,90.579,90.524,6.0]
[1643356153304,1.50680976,90.581,90.525,0.25]
[1643356153505,1.50680976,90.583,90.53,6.0]
[1643356153704,1.50680976,90.583,90.531,39.26196479]
[1643356153904,1.50680976,90.581,90.531,39.51196479]
[1643356154107,1.50680976,90.582,90.531,39.51196479]
[1643356154707,1.50680976,90.581,90.531,39.51196479]
[1643356154907,1.50680976,90.582,90.531,39.51196479]
[1643356155307,1.50680976,90.583,90.531,39.26196479]
[1643356155709,3.0224484,90.604,90.531,39.26196479]
[1643356155710,1.50680976,90.579,90.531,39.26196479]
[1643356156132,1.50680976,90.582,90.531,39.26196479]
[1643356156728,1.50680976,90.581,90.531,39.26196479]
[1643356156939,1.50680976,90.581,90.501,2.27925047]
[1643356157131,1.50680976,90.565,90.461,48.0349]
[1643356157430,1.50680976,90.553,90.461,48.0349]
[1643356157829,1.50680976,90.553,90.462,44.91126258]
[1643356158033,1.50680976,90.551,90.462,44.91126258]
[1643356158230,1.50680976,90.549,90.473,108.9]
[1643356158429,3.02044406,90.579,90.475,108.9]
[1643356158430,1.50680976,90.548,90.475,108.9]
[1643356158630,1.50680976,90.548,90.485,6.0]
[1643356158831,1.50680976,90.549,90.486,0.25]
[1643356159032,1.50680976,90.549,90.486,36.32296716]
[1643356159231,1.50680976,90.547,90.486,36.32296716]
[1643356159431,1.50680976,90.546,90.486,36.32296716]
[1643356160039,1.50680976,90.542,90.486,36.32296716]
[1643356160233,1.50680976,90.536,90.486,36.07296716]
[1643356160435,1.50680976,90.534,90.486,36.07296716]
[1643356160833,1.50680976,90.533,90.486,36.07296716]
[1643356161234,1.50680976,90.533,90.44,15.95]
[1643356161434,7.13251569,90.541,90.462,0.25]
[1643356161435,1.50680976,90.531,90.462,0.25]
[1643356161635,7.13251569,90.541,90.441,72.064]
[1643356161636,1.50680976,90.533,90.441,48.5411]
[1643356161838,1.50680976,90.528,90.42,15.95]
[1643356162036,1.50680976,90.517,90.4,15.95]
[1643356162239,2.77514021,90.516,90.401,45.25302196]
[1643356162539,1.50680976,90.502,90.401,45.25302196]
[1643356162736,5.73183163,90.516,90.401,45.25302196]
[1643356162737,1.50680976,90.508,90.401,45.25302196]
[1643356162937,1.50680976,90.508,90.411,6.0]
[1643356163140,1.50680976,90.511,90.412,6.0]
[1643356163337,1.50680976,90.513,90.413,24.8513]
[1643356163537,1.50680976,90.514,90.423,6.0]
[1643356163736,1.50680976,90.515,90.425,108.9]
[1643356163936,1.50680976,90.518,90.425,154.1716773]
[1643356164137,1.50680976,90.518,90.435,6.0]
[1643356164339,1.50680976,90.521,90.436,0.25]
[1643356164545,1.50680976,90.521,90.436,6.25]
[1643356164738,1.50680976,90.523,90.436,6.25]
[1643356164939,18.24536502,90.533,90.436,6.25]
[1643356164940,1.50680976,90.522,90.436,6.25]
[1643356165140,1.50680976,90.516,90.446,6.0]
[1643356165339,1.50680976,90.516,90.447,0.25]
[1643356165540,0.25,90.521,90.447,0.25]
[1643356166341,1.75680976,90.521,90.447,0.25]
[1643356166541,0.25,90.521,90.436,0.25]
[1643356166743,1.50680976,90.523,90.436,0.25]
[1643356166744,1.50680976,90.523,90.436,109.15]
[1643356166941,0.25,90.522,90.436,111.42925047]
[1643356167142,0.25,90.522,90.447,37.92938661]
[1643356167374,1.50680976,90.527,90.448,0.25]
[1643356167748,1.50680976,90.528,90.448,0.25]
[1643356168144,1.50680976,90.528,90.449,2.27925047]
[1643356168347,18.24536502,90.533,90.45,0.25]
[1643356168348,1.50680976,90.529,90.45,0.25]
[1643356168546,1.50680976,90.531,90.45,0.25]
[1643356168747,1.50680976,90.531,90.458,6.0]
[1643356168948,19.75217478,90.533,90.45,0.25]
[1643356169547,1.50680976,90.533,90.458,6.0]
[1643356169749,1.50680976,90.534,90.459,109.15]
[1643356169947,1.50680976,90.535,90.459,109.15]
[1643356170146,1.50680976,90.536,90.459,109.15]
[1643356170548,1.50680976,90.535,90.459,109.15]
[1643356170951,1.50680976,90.536,90.459,109.15]
[1643356171146,1.50680976,90.538,90.47,108.9]
[1643356171349,1.50680976,90.559,90.48,15.95]
[1643356171549,1.50680976,90.557,90.481,48.2018]
[1643356171747,1.50680976,90.558,90.482,47.08358382]
[1643356171947,1.50680976,90.558,90.492,108.9]
[1643356172150,1.50680976,90.561,90.492,114.9]
[1643356172346,1.50680976,90.562,90.493,0.25]
[1643356172547,1.50680976,90.562,90.494,108.9]
[1643356172747,1.50680976,90.562,90.495,0.25]
[1643356172948,1.50680976,90.563,90.505,108.9]
[1643356173148,1.50680976,90.563,90.505,147.99975921]
[1643356173348,18.24536502,90.572,90.505,147.99975921]
[1643356173349,1.50680976,90.564,90.506,0.25]
[1643356173749,1.50680976,90.565,90.516,108.9]
[1643356174152,1.50680976,90.567,90.517,0.25]
[1643356174349,1.50680976,90.565,90.517,0.25]
[1643356175352,1.50680976,90.565,90.516,0.25]
[1643356175552,1.50680976,90.566,90.516,0.25]
[1643356175752,1.50680976,90.566,90.506,0.25]
[1643356176453,1.50680976,90.567,90.506,109.15]
[1643356176652,1.50680976,90.566,90.506,109.15]
[1643356176853,1.50680976,90.567,90.506,109.15]
[1643356178658,1.50680976,90.57,90.516,6.0]
[1643356178856,1.50680976,90.571,90.517,0.25]
[1643356180055,1.50680976,90.571,90.516,108.9]
[1643356180256,1.50680976,90.57,90.52,37.23465254]
[1643356180456,1.50680976,90.572,90.52,37.23465254]
[1643356180655,1.50680976,90.567,90.52,37.23465254]
[1643356180857,1.50680976,90.56,90.521,0.25]
[1643356181058,1.50680976,90.569,90.521,0.25]
[1643356181658,1.50680976,90.569,90.52,37.23465254]
[1643356181857,1.50680976,90.567,90.52,37.23465254]
[1643356182057,1.50680976,90.565,90.52,37.23465254]
[1643356182257,1.50680976,90.564,90.52,37.23465254]
[1643356182780,3.0224484,90.59,90.52,37.23465254]
[1643356182781,1.50680976,90.563,90.52,37.23465254]
[1643356182989,1.50680976,90.562,90.52,37.23465254]
[1643356183181,1.50680976,90.56,90.52,37.23465254]
[1643356183380,1.50680976,90.559,90.52,37.23465254]
[1643356183583,17.85969835,90.576,90.52,37.23465254]
[1643356183584,1.50680976,90.554,90.52,37.23465254]
[1643356183784,1.50680976,90.554,90.472,23.5599]
[1643356183984,1.50680976,90.55,90.482,0.25]
[1643356184280,1.50680976,90.548,90.482,0.25]
[1643356184680,1.50680976,90.547,90.482,0.25]
[1643356184881,1.50680976,90.547,90.482,37.21859476]
[1643356185481,1.50680976,90.548,90.482,37.21859476]
[1643356185680,3.01276593,90.567,90.482,37.21859476]
[1643356185681,1.50680976,90.546,90.482,37.21859476]
[1643356186082,1.50680976,90.544,90.482,36.96859476]
[1643356186282,1.50680976,90.538,90.482,36.96859476]
[1643356186488,1.50680976,90.535,90.482,36.96859476]
[1643356186680,1.50680976,90.532,90.482,36.96859476]
[1643356187082,1.50680976,90.533,90.482,36.96859476]
[1643356187382,1.50680976,90.534,90.482,36.96859476]
[1643356187785,1.50680976,90.537,90.482,36.96859476]
[1643356188183,1.50680976,90.536,90.483,0.25]
[1643356188784,1.50680976,90.537,90.483,0.25]
[1643356189589,1.50680976,90.535,90.483,0.25]
[1643356190085,1.50680976,90.537,90.483,0.25]
[1643356190486,1.50680976,90.536,90.483,0.25]
[1643356191688,1.50680976,90.535,90.483,0.25]
[1643356191890,1.50680976,90.535,90.482,36.96859476]
[1643356192093,1.50680976,90.534,90.482,36.96859476]
[1643356192691,1.50680976,90.531,90.482,36.96859476]
[1643356192890,1.50680976,90.532,90.482,36.96859476]
[1643356193091,1.50680976,90.531,90.482,36.96859476]
[1643356193893,1.50680976,90.53,90.482,36.96859476]
[1643356194692,1.50680976,90.529,90.482,36.96859476]
[1643356194892,1.50680976,90.53,90.482,36.96859476]
[1643356195293,1.50680976,90.529,90.482,36.96859476]
[1643356195792,1.50680976,90.528,90.482,36.96859476]
[1643356196493,1.50680976,90.527,90.482,36.96859476]
[1643356197095,1.50680976,90.525,90.482,36.96859476]
[1643356197296,1.50680976,90.527,90.482,36.96859476]
[1643356197494,1.50680976,90.526,90.482,36.96859476]
[1643356197694,1.50680976,90.524,90.482,36.96859476]
[1643356197897,1.50680976,90.526,90.482,36.96859476]
[1643356198097,1.50680976,90.527,90.483,0.25]
[1643356198295,1.50680976,90.528,90.483,0.25]
[1643356198597,1.50680976,90.527,90.483,0.25]
[1643356199495,1.50680976,90.528,90.483,0.25]
[1643356199896,1.50680976,90.527,90.483,0.25]
[1643356200697,1.50680976,90.528,90.483,0.25]
[1643356201097,1.50680976,90.527,90.483,0.25]
[1643356201800,1.50680976,90.527,90.482,36.96859476]
[1643356202002,1.50680976,90.523,90.482,36.96859476]
[1643356202300,1.50680976,90.517,90.482,36.96859476]
[1643356202499,17.85969835,90.558,90.482,36.96859476]
[1643356202500,1.50680976,90.523,90.482,36.96859476]
[1643356202700,1.50680976,90.522,90.482,36.96859476]
[1643356202899,1.50680976,90.521,90.482,36.96859476]
[1643356203100,1.50680976,90.521,90.483,0.25]
[1643356203697,3.02010122,90.555,90.483,0.25]
[1643356203698,1.50680976,90.522,90.483,0.25]
[1643356204297,1.50680976,90.523,90.483,0.25]
[1643356204502,1.50680976,90.52,90.483,0.25]
[1643356205298,1.50680976,90.521,90.483,0.25]
[1643356205501,1.50680976,90.523,90.483,0.25]
[1643356206000,1.50680976,90.524,90.483,0.25]
[1643356206200,1.50680976,90.523,90.483,0.25]
[1643356206401,1.50680976,90.523,90.482,36.96859476]
[1643356206600,1.50680976,90.52,90.482,36.96859476]
[1643356207202,1.50680976,90.516,90.482,36.96859476]
[1643356208605,1.50680976,90.515,90.482,36.96859476]
[1643356209203,2.95669142,90.54,90.482,36.96859476]
[1643356209204,1.50680976,90.518,90.482,36.96859476]
[1643356209406,1.50680976,90.519,90.482,36.96859476]
[1643356209611,1.50680976,90.517,90.483,0.25]
[1643356209808,1.50680976,90.519,90.482,36.96859476]
[1643356210210,1.50680976,90.515,90.483,0.25]
[1643356210407,1.50680976,90.516,90.483,0.25]
[1643356210607,1.50680976,90.514,90.483,0.25]
[1643356211406,1.50680976,90.514,90.482,36.96859476]
[1643356211607,1.50680976,90.513,90.482,36.96859476]
[1643356211912,1.50680976,90.512,90.482,36.96859476]
[1643356212109,1.50680976,90.513,90.482,36.96859476]
[1643356212310,1.50680976,90.514,90.483,0.25]
[1643356212609,1.50680976,90.512,90.483,0.25]
[1643356213509,1.50680976,90.513,90.483,0.25]
[1643356213710,1.50680976,90.512,90.483,0.25]
[1643356213909,1.50680976,90.518,90.483,0.25]
[1643356214310,1.50680976,90.517,90.483,0.25]
[1643356214615,1.50680976,90.516,90.483,0.25]
[1643356214815,1.50680976,90.513,90.483,0.25]
[1643356215010,1.50680976,90.512,90.483,0.25]
[1643356215210,1.50680976,90.513,90.483,0.25]
[1643356215412,1.50680976,90.512,90.484,1.2549215]
[1643356215611,1.50680976,90.51,90.484,1.2549215]
[1643356215910,1.50680976,90.51,90.485,0.25]
[1643356216135,1.50680976,90.509,90.485,0.25]
[1643356216310,1.50680976,90.508,90.485,0.25]
[1643356218214,3.0294315,90.529,90.485,0.25]
[1643356218215,1.50680976,90.509,90.485,0.25]
[1643356218416,1.50680976,90.511,90.485,0.25]
[1643356218815,1.50680976,90.51,90.486,1.2549215]
[1643356219415,2.95669142,90.509,90.486,1.2549215]
[1643356219617,1.50680976,90.501,90.418,1.50621078]
[1643356219814,21.95225033,90.509,90.401,1.50621078]
[1643356219815,3.0294315,90.508,90.401,1.50621078]
[1643356220019,1.51437075,90.472,90.389,1.50621078]
[1643356220319,1.51437075,90.464,90.37,47.71975806]
[1643356220516,1.51437075,90.463,90.37,47.71975806]
[1643356220717,1.51437075,90.46,90.37,47.71975806]
[1643356220918,1.51437075,90.46,90.371,0.25]
[1643356221117,2.95669142,90.462,90.38,6.0]
[1643356221331,2.95669142,90.462,90.381,47.2029]
[1643356221519,1.51437075,90.468,90.382,108.9]
[1643356221719,11.08214436,90.479,90.381,47.2029]
[1643356221918,11.08214436,90.479,90.383,0.25]
[1643356222217,19.64555891,90.478,90.381,47.2029]
[1643356222626,1.51437075,90.477,90.381,47.2029]
[1643356222822,21.15992966,90.478,90.391,6.0]
[1643356223025,21.15992966,90.478,90.392,38.46453379]
[1643356223223,21.15992966,90.478,90.392,38.71453379]
[1643356223425,1.51437075,90.476,90.392,38.71453379]
[1643356223644,1.51437075,90.475,90.392,38.71453379]
[1643356223846,4.72106217,90.475,90.392,38.71453379]
[1643356224044,2.95669142,90.474,90.392,38.71453379]
[1643356225348,16.6019,90.47,90.392,38.46453379]
[1643356225745,2.95669142,90.469,90.392,38.46453379]
[1643356225946,16.6019,90.47,90.392,38.46453379]
[1643356226349,16.6019,90.47,90.393,22.5208]
[1643356226548,2.95669142,90.469,90.393,22.5208]
[1643356226747,2.95669142,90.469,90.394,0.25]
[1643356227151,2.95669142,90.469,90.393,0.25]
[1643356228549,2.95669142,90.469,90.392,38.46453379]
[1643356229953,111.85669142,90.469,90.392,38.46453379]
[1643356230353,2.95669142,90.468,90.392,38.46453379]
[1643356230555,2.95669142,90.468,90.393,0.25]
[1643356230953,0.25,90.467,90.393,0.25]
[1643356231152,0.25,90.467,90.392,38.46453379]
[1643356231353,108.9,90.459,90.361,101.6947]
[1643356231552,32.5538,90.46,90.362,0.25]
[1643356231755,21.46836144,90.458,90.361,101.6947]
[1643356232153,2.95669142,90.457,90.361,101.6947]
[1643356232555,2.95669142,90.457,90.362,48.95258537]
[1643356232853,16.6054,90.45,90.362,48.95258537]
[1643356233254,2.95669142,90.449,90.362,48.95258537]
[1643356233856,2.95669142,90.449,90.363,0.25]
[1643356234055,2.95669142,90.449,90.372,6.0]
[1643356234355,2.95669142,90.449,90.373,0.25]
[1643356235056,16.6076,90.44,90.362,48.95258537]
[1643356235458,2.95669142,90.439,90.362,48.95258537]
[1643356235662,3.20669142,90.439,90.362,48.95258537]